[Event "FIDE World Cup O10-A 2024"]
[Site "Batumi"]
[Date "2024.06.25"]
[Round "3.2"]
[White "Bolashakov, Nurali"]
[Black "Shangin, Lev"]
[Result "1-0"]
[ECO "B96"]
[WhiteElo "1843"]
[BlackElo "2031"]
[Annotator "NA RC"]
[PlyCount "51"]
[EventDate "2024.06.23"]
[EventType "swiss"]
[EventCountry "GEO"]
[SourceTitle "playchess.com"]
[Source "ChessBase"]
[SourceQuality "1"]
[TimeControl "5400+30"]

1. e4 {[%emt 0:00:05]} c5 {[%emt 0:00:18]} 2. Nf3 {[%emt 0:00:21]} d6 {[%emt 0:00:28]} 3. d4 {[%emt 0:00:29]} cxd4 {[%emt 0:00:32]} 4. Nxd4 {[%emt 0:00:24]} Nf6 {[%emt 0:00:06]} 5. Nc3 {[%emt 0:00:08]} a6 {[%emt 0:00:12]} 6. Bg5 {[%emt 0:00:19]} Nbd7 {[%emt 0:00:29]} 7. f4 {[%emt 0:00:23]} Qc7 {[%emt 0:00:43]} 8. Qf3 {[%emt 0:00:48]} b5 {[%emt 0:00:53]} 9. O-O-O {[%emt 0:01:31]} Bb7 {[%emt 0:00:52]} 10. Bd3 {[%emt 0:00:32]} Qb6 {[%emt 0:00:20]} 11. Nb3 {[%emt 0:02:22]} e6 {[%emt 0:01:23]} 12. Rhe1 {[%emt 0:17:04]} b4 {[%emt 0:04:11]} 13. Nd5 {[%emt 0:11:31]} exd5 {[%emt 0:00:58]} 14. exd5+ {[%emt 0:00:27]} Kd8 {[%emt 0:04:27]} 15. Bf5 {[%emt 0:08:43]} Kc7 {[%emt 0:12:47]} 16. Bh4 {[%emt 0:12:34]} Qb5 $17 {[%emt 0:14:15]} 17. c4 {[%emt 0:16:34]} Qxc4+ {[%emt 0:06:12]} 18. Kb1 {[%emt 0:00:32]} Bxd5 {[%emt 0:07:12]} 19. Qe3 {[%emt 0:03:54]} Nc5 {[%emt 0:08:04]} 20. Bxf6 {[%emt 0:05:25]} gxf6 {[%emt 0:00:15]} 21. Rd4 {[%emt 0:00:36]} Qb5 {[%emt 0:07:10]} 22. Rxd5 {[%emt 0:00:06]} Qc6 {[%emt 0:01:07]} 23. Qf3 {[%emt 0:04:43]} Re8 {[%emt 0:02:22]} 24. Red1 {[%emt 0:00:55]} Rg8 {[%emt 0:02:33]} 25. Nxc5 {[%emt 0:00:23]} dxc5 {[%emt 0:00:07]} 26. Bd7 {[%emt 0:00:15]} 1-0

[Event "FIDE World Cup O10-A 2024"]
[Site "Batumi"]
[Date "2024.06.25"]
[Round "3.3"]
[White "Vyom Malhotra"]
[Black "Faramarzi Garousi, Maartia"]
[Result "1-0"]
[ECO "A07"]
[WhiteElo "1803"]
[BlackElo "1820"]
[Annotator "NA RC"]
[PlyCount "91"]
[EventDate "2024.06.23"]
[EventType "swiss"]
[EventCountry "GEO"]
[SourceTitle "playchess.com"]
[Source "ChessBase"]
[SourceQuality "1"]
[TimeControl "5400+30"]

1. Nf3 {[%emt 0:04:35]} d5 {[%emt 0:00:10]} 2. b3 {[%emt 0:00:18]} Bf5 {[%emt 0:00:10]} 3. Bb2 {[%emt 0:00:20]} e6 {[%emt 0:00:17]} 4. g3 {[%emt 0:00:28]} Nf6 {[%emt 0:00:09]} 5. Bg2 {[%emt 0:00:20]} Be7 {[%emt 0:00:16]} 6. O-O {[%emt 0:00:24]} h6 {[%emt 0:00:08]} 7. d3 {[%emt 0:01:06]} O-O {[%emt 0:02:02]} 8. Nbd2 {[%emt 0:00:25]} c5 {[%emt 0:00:41]} 9. Re1 {[%emt 0:01:08]} Bh7 {[%emt 0:01:18]} 10. e4 {[%emt 0:01:12]} Nc6 {[%emt 0:00:25]} 11. exd5 {[%emt 0:04:28]} exd5 {[%emt 0:00:23]} 12. Ne5 {[%emt 0:00:55]} Nxe5 {[%emt 0:06:20]} 13. Bxe5 {[%emt 0:00:24]} Re8 {[%emt 0:05:42]} 14. d4 {[%emt 0:05:42]} Rc8 {[%emt 0:01:59]} 15. c3 {[%emt 0:01:25]} cxd4 {[%emt 0:02:32]} 16. cxd4 {[%emt 0:11:00]} Bb4 {[%emt 0:21:17]} 17. Rc1 {[%emt 0:04:20]} Qa5 {[%emt 0:05:41]} 18. Rxc8 {[%emt 0:00:54]} Rxc8 {[%emt 0:00:07]} 19. Bxf6 {[%emt 0:00:37]} Bg6 {[%emt 0:03:43]} 20. Qg4 {[%emt 0:03:05]} Ra8 {[%emt 0:00:37]} 21. Re5 {[%emt 0:04:08]} gxf6 {[%emt 0:04:46]} 22. Rxd5 {[%emt 0:05:00]} Qxa2 {[%emt 0:03:49]} 23. Nf3 {[%emt 0:06:17]} Qxb3 {[%emt 0:02:13]} 24. Nh4 {[%emt 0:02:21]} Qb1+ {[%emt 0:02:30]} 25. Bf1 {[%emt 0:00:08]} Re8 {[%emt 0:03:33]} 26. Nxg6 {[%emt 0:01:20]} Qxg6 {[%emt 0:00:40]} 27. Qf3 {[%emt 0:03:26]} Qe4 {[%emt 0:07:49]} 28. Qb3 {[%emt 0:02:21]} a5 {[%emt 0:01:49]} 29. Rh5 {[%emt 0:08:32]} Bf8 {[%emt 0:03:56]} 30. Rh4 {[%emt 0:00:32]} Qe7 {[%emt 0:04:16]} 31. Rg4+ {[%emt 0:00:29]} Bg7 {[%emt 0:00:36]} 32. Qb5 {[%emt 0:02:44]} Ra8 {[%emt 0:02:18]} 33. Bd3 {[%emt 0:00:50]} Qe1+ {[%emt 0:02:12]} 34. Kg2 {[%emt 0:00:49]} Qe6 {[%emt 0:00:21]} 35. Qh5 {[%emt 0:01:19]} a4 {[%emt 0:02:03]} 36. d5 {[%emt 0:02:37]} Qd7 {[%emt 0:00:27]} 37. Bb1 {[%emt 0:06:53]} a3 {[%emt 0:01:29]} 38. Ba2 {[%emt 0:00:05]} Rc8 {[%emt 0:02:06]} 39. d6 {[%emt 0:00:23]} f5 {[%emt 0:03:57]} 40. Rg6 {[%emt 0:04:17]} Kh8 {[%emt 0:00:21]} 41. Rxh6+ {[%emt 0:01:42]} Bxh6 {[%emt 0:00:05]} 42. Qxh6+ {[%emt 0:00:07]} Kg8 {[%emt 0:00:06]} 43. Qg6+ {[%emt 0:00:04]} Kf8 {[%emt 0:00:09]} 44. Qh7 {[%emt 0:00:49]} Qc6+ {[%emt 0:01:49]} 45. Kh3 {[%emt 0:00:36]} Ke8 {[%emt 0:01:20]} 46. Qxf7+ {[%emt 0:00:08]} 1-0

[Event "FIDE World Cup O10-A 2024"]
[Site "Batumi"]
[Date "2024.06.25"]
[Round "3.4"]
[White "Hummatov, Safa"]
[Black "Safin Safarullakhan"]
[Result "0-1"]
[ECO "B55"]
[WhiteElo "1693"]
[BlackElo "1879"]
[Annotator "NA RC"]
[PlyCount "100"]
[EventDate "2024.06.23"]
[EventType "swiss"]
[EventCountry "GEO"]
[SourceTitle "playchess.com"]
[Source "ChessBase"]
[SourceQuality "1"]
[TimeControl "5400+30"]

1. e4 {[%emt 0:00:02]} c5 {[%emt 0:00:19]} 2. Nf3 {[%emt 0:00:06]} d6 {[%emt 0:00:14]} 3. d4 {[%emt 0:00:06]} cxd4 {[%emt 0:00:12]} 4. Nxd4 {[%emt 0:00:06]} Nf6 {[%emt 0:00:20]} 5. f3 {[%emt 0:00:09]} e5 {[%emt 0:01:17]} 6. Nb3 {[%emt 0:00:07]} a5 {[%emt 0:02:22]} 7. c4 {[%emt 0:01:20]} Nxe4 {[%emt 0:01:23]} 8. fxe4 {[%emt 0:01:04]} Qh4+ {[%emt 0:00:20]} 9. Kd2 {[%emt 0:03:26]} a4 {[%emt 0:00:27]} 10. Nc3 {[%emt 0:03:16]} axb3 {[%emt 0:01:00]} 11. g3 {[%emt 0:04:22]} Qd8 {[%emt 0:03:39]} 12. Qxb3 {[%emt 0:01:04]} Nc6 {[%emt 0:00:43]} 13. Ne2 {[%emt 0:04:48]} Qf6 {[%emt 0:05:25]} 14. Ke1 {[%emt 0:01:55]} Be7 {[%emt 0:02:29]} 15. Bg2 {[%emt 0:01:50]} O-O {[%emt 0:01:41]} 16. Be3 {[%emt 0:04:11]} Be6 {[%emt 0:03:55]} 17. Rf1 {[%emt 0:07:39]} Qg6 {[%emt 0:00:48]} 18. Rc1 {[%emt 0:14:14]} Rfb8 $19 {[%emt 0:07:29]} 19. a4 {[%emt 0:03:39]} Bg5 {[%emt 0:02:37]} 20. Bxg5 {[%emt 0:10:18]} Qxg5 {[%emt 0:00:10]} 21. Qd1 {[%emt 0:00:38]} Bg4 {[%emt 0:05:14]} 22. Bf3 {[%emt 0:08:07]} Bxf3 {[%emt 0:02:26]} 23. Rxf3 {[%emt 0:00:57]} Qg4 {[%emt 0:00:49]} 24. Nc3 {[%emt 0:01:24]} Nd4 {[%emt 0:00:34]} 25. Rf2 {[%emt 0:00:44]} Qg5 {[%emt 0:09:42]} 26. Ne2 {[%emt 0:01:43]} Nxe2 {[%emt 0:01:15]} 27. Rxe2 {[%emt 0:00:43]} Rxa4 {[%emt 0:00:28]} 28. Rc3 {[%emt 0:00:32]} Ra6 {[%emt 0:02:21]} 29. Kf2 {[%emt 0:03:07]} h5 {[%emt 0:05:38]} 30. Qd5 {[%emt 0:03:20]} Rc6 {[%emt 0:13:17]} 31. b4 {[%emt 0:00:31]} Rd8 {[%emt 0:04:59]} 32. b5 {[%emt 0:01:21]} Rc7 {[%emt 0:00:26]} 33. Rf3 {[%emt 0:03:32]} Qc1 {[%emt 0:04:39]} 34. b6 {[%emt 0:00:40]} Rcd7 {[%emt 0:01:11]} 35. Kg2 {[%emt 0:00:29]} Rc8 {[%emt 0:00:25]} 36. Rd3 {[%emt 0:08:32]} Rc5 {[%emt 0:04:47]} 37. Qxc5 {[%emt 0:00:21]} dxc5 {[%emt 0:00:07]} 38. Rxd7 {[%emt 0:00:13]} Qxc4 {[%emt 0:00:06]} 39. Kf2 {[%emt 0:00:28]} Qa6 {[%emt 0:00:58]} 40. Rd6 {[%emt 0:01:11]} c4 {[%emt 0:00:28]} 41. Rc2 {[%emt 0:02:53]} Qb5 {[%emt 0:00:42]} 42. Kg2 {[%emt 0:00:33]} Qa4 {[%emt 0:03:06]} 43. Rdd2 {[%emt 0:00:17]} Qc6 {[%emt 0:00:34]} 44. Re2 {[%emt 0:00:23]} f5 {[%emt 0:00:28]} 45. Kh3 {[%emt 0:00:26]} fxe4 {[%emt 0:00:23]} 46. Kh4 {[%emt 0:01:57]} Qxb6 {[%emt 0:01:16]} 47. Kxh5 {[%emt 0:00:51]} Qe6 {[%emt 0:01:35]} 48. Kg5 {[%emt 0:00:20]} b5 {[%emt 0:01:15]} 49. Rxe4 {[%emt 0:00:05]} Qf6+ {[%emt 0:01:30]} 50. Kg4 {[%emt 0:00:02]} g6 {[%emt 0:08:01]} 0-1

[Event "FIDE World Cup O10-A 2024"]
[Site "Batumi"]
[Date "2024.06.25"]
[Round "3.5"]
[White "Jakhaia, Andria"]
[Black "Aryan Mehta"]
[Result "1-0"]
[ECO "B90"]
[WhiteElo "1652"]
[BlackElo "1863"]
[Annotator "NA RC"]
[PlyCount "127"]
[EventDate "2024.06.23"]
[EventType "swiss"]
[EventCountry "GEO"]
[SourceTitle "playchess.com"]
[Source "ChessBase"]
[SourceQuality "1"]
[TimeControl "5400+30"]

1. e4 {[%emt 0:00:30]} c5 {[%emt 0:00:05]} 2. Nf3 {[%emt 0:00:08]} d6 {[%emt 0:00:07]} 3. d4 {[%emt 0:00:08]} cxd4 {[%emt 0:00:06]} 4. Nxd4 {[%emt 0:00:08]} Nf6 {[%emt 0:00:05]} 5. Nc3 {[%emt 0:00:11]} a6 {[%emt 0:00:06]} 6. Rg1 {[%emt 0:00:12]} e5 {[%emt 0:00:15]} 7. Nb3 {[%emt 0:00:07]} Be6 {[%emt 0:01:41]} 8. g4 {[%emt 0:00:14]} d5 {[%emt 0:00:59]} 9. exd5 {[%emt 0:00:14]} Nxd5 {[%emt 0:00:16]} 10. Nxd5 {[%emt 0:00:16]} Qxd5 {[%emt 0:00:32]} 11. Qxd5 {[%emt 0:00:17]} Bxd5 {[%emt 0:00:03]} 12. Be3 {[%emt 1:34:05]} Nc6 {[%emt 0:06:08]} 13. O-O-O {[%emt 0:00:00]} O-O-O {[%emt 0:00:33]} 14. Bb6 {[%emt 0:01:00]} Rd7 {[%emt 0:01:56]} 15. Rg3 {[%emt 0:00:30]} Be7 {[%emt 0:07:37]} 16. Nc5 {[%emt 0:00:00]} Bxc5 {[%emt 0:00:21]} 17. Bxc5 {[%emt 0:00:00]} Kc7 {[%emt 0:09:02]} 18. g5 {[%emt 0:00:00]} Be6 {[%emt 0:10:12]} 19. Rxd7+ {[%emt 0:00:00]} Bxd7 {[%emt 0:00:11]} 20. Bc4 {[%emt 0:00:00]} Nd4 {[%emt 0:11:38]} 21. Bxd4 {[%emt 0:00:00]} exd4 {[%emt 0:00:34]} 22. Rf3 {[%emt 0:00:00]} Rf8 {[%emt 0:09:17]} 23. Rxf7 {[%emt 0:00:00]} Rxf7 {[%emt 0:00:11]} 24. Bxf7 {[%emt 0:00:00]} Kd6 {[%emt 0:40:35]} 25. f4 {[%emt 0:00:00]} Be6 {[%emt 0:00:00]} 26. Bh5 {[%emt 0:00:00]} g6 {[%emt 0:00:00]} 27. Be2 {[%emt 0:00:00]} Bd5 {[%emt 0:00:00]} 28. Kd2 {[%emt 0:00:00]} Be4 {[%emt 0:00:00]} 29. Bc4 {[%emt 0:00:00]} b5 {[%emt 0:00:00]} 30. Bg8 {[%emt 0:00:00]} Bf5 {[%emt 0:00:00]} 31. h4 {[%emt 0:00:00]} Bg4 {[%emt 0:00:00]} 32. Kd3 {[%emt 0:00:00]} Kc5 {[%emt 0:00:00]} 33. Bxh7 {[%emt 0:00:00]} Bh5 {[%emt 0:00:00]} 34. Bg8 {[%emt 0:00:00]} Bg4 {[%emt 0:00:00]} 35. Bh7 {[%emt 0:00:00]} Bh5 {[%emt 0:00:00]} 36. f5 {[%emt 0:00:00]} gxf5 {[%emt 0:00:00]} 37. g6 {[%emt 0:00:00]} Bf3 {[%emt 0:00:00]} 38. g7 {[%emt 0:00:00]} Be4+ {[%emt 0:00:00]} 39. Kd2 {[%emt 0:00:09]} Bd5 {[%emt 0:00:00]} 40. g8=Q {[%emt 0:00:11]} Bxg8 {[%emt 0:00:00]} 41. Bxg8 {[%emt 0:00:01]} Kd6 {[%emt 0:00:00]} 42. Kd3 {[%emt 0:00:42]} Ke5 {[%emt 0:00:00]} 43. Bf7 {[%emt 0:00:14]} Kf6 {[%emt 0:00:00]} 44. Bh5 {[%emt 0:01:03]} Ke5 {[%emt 0:00:00]} 45. Bf3 {[%emt 0:00:13]} a5 {[%emt 0:00:00]} 46. c3 {[%emt 0:00:51]} dxc3 {[%emt 0:00:00]} 47. Kxc3 {[%emt 0:00:12]} Kf4 {[%emt 0:00:00]} 48. Bc6 {[%emt 0:12:54]} b4+ {[%emt 0:00:00]} 49. Kb3 {[%emt 0:00:00]} Kg4 {[%emt 0:00:00]} 50. Ka4 {[%emt 0:00:00]} Kxh4 {[%emt 0:00:00]} 51. Kxa5 {[%emt 0:00:00]} f4 {[%emt 0:00:00]} 52. Kxb4 {[%emt 0:00:00]} Kg3 {[%emt 0:00:00]} 53. a4 {[%emt 0:00:00]} f3 {[%emt 0:00:00]} 54. a5 {[%emt 0:00:00]} f2 {[%emt 0:00:00]} 55. Bb5 {[%emt 0:00:00]} Kg2 {[%emt 0:00:00]} 56. a6 {[%emt 0:00:00]} Kg1 {[%emt 0:00:00]} 57. a7 {[%emt 0:00:00]} f1=Q {[%emt 0:00:00]} 58. Bxf1 {[%emt 0:00:00]} Kxf1 {[%emt 0:00:00]} 59. a8=Q {[%emt 0:00:00]} Kf2 {[%emt 0:00:00]} 60. Qe4 {[%emt 0:00:00]} Kg3 {[%emt 0:00:00]} 61. Kc4 {[%emt 0:00:00]} Kh2 {[%emt 0:00:00]} 62. Qd3 {[%emt 0:00:00]} Kh1 {[%emt 0:00:00]} 63. Qe2 {[%emt 0:00:00]} Kg1 {[%emt 0:00:00]} 64. Kd3 {[%emt 0:08:00]} 1-0

[Event "FIDE World Cup O10-A 2024"]
[Site "Batumi"]
[Date "2024.06.25"]
[Round "3.6"]
[White "Tsulaia, Giorgi"]
[Black "Mrozowski, Nikodem"]
[Result "0-1"]
[ECO "B56"]
[WhiteElo "1646"]
[BlackElo "1776"]
[Annotator "NA RC"]
[PlyCount "146"]
[EventDate "2024.06.23"]
[EventType "swiss"]
[EventCountry "GEO"]
[SourceTitle "playchess.com"]
[Source "ChessBase"]
[SourceQuality "1"]
[TimeControl "5400+30"]

1. e4 {[%emt 0:00:36]} c5 {[%emt 0:00:08]} 2. Nf3 {[%emt 0:00:03]} d6 {[%emt 0:00:12]} 3. d4 {[%emt 0:00:05]} cxd4 {[%emt 0:00:06]} 4. Nxd4 {[%emt 0:00:03]} Nf6 {[%emt 0:00:20]} 5. Nc3 {[%emt 0:00:07]} Bd7 {[%emt 0:00:15]} 6. Be3 {[%emt 0:15:40]} Nc6 {[%emt 0:02:55]} 7. f3 {[%emt 0:02:03]} e5 {[%emt 0:00:28]} 8. Nb3 {[%emt 0:01:08]} Be6 {[%emt 0:03:07]} 9. Qd2 {[%emt 0:03:50]} a5 {[%emt 0:00:37]} 10. Bb5 {[%emt 0:05:16]} Be7 {[%emt 0:01:54]} 11. Na4 {[%emt 0:08:42]} Nd7 {[%emt 0:01:59]} 12. O-O {[%emt 0:03:28]} Qc7 {[%emt 0:10:27]} 13. c4 {[%emt 0:12:23]} b6 {[%emt 0:07:24]} 14. Rac1 {[%emt 0:00:58]} Nc5 {[%emt 0:01:43]} 15. Nc3 {[%emt 0:09:02]} O-O {[%emt 0:10:54]} 16. Nd5 {[%emt 0:07:26]} Bxd5 {[%emt 0:00:52]} 17. cxd5 {[%emt 0:00:29]} Na7 {[%emt 0:04:11]} 18. Be2 {[%emt 0:02:40]} Qb7 {[%emt 0:04:50]} 19. Nxc5 {[%emt 0:02:09]} bxc5 {[%emt 0:00:51]} 20. Rc3 {[%emt 0:01:47]} a4 {[%emt 0:01:28]} 21. b3 {[%emt 0:05:33]} Bd8 {[%emt 0:07:10]} 22. Qb2 {[%emt 0:02:01]} Ba5 {[%emt 0:03:14]} 23. Rc2 {[%emt 0:01:22]} Rfb8 {[%emt 0:02:50]} 24. Bc4 {[%emt 0:00:28]} Nc8 {[%emt 0:00:25]} 25. Qc1 {[%emt 0:00:53]} axb3 {[%emt 0:01:55]} 26. Bxb3 {[%emt 0:00:47]} Nb6 {[%emt 0:02:13]} 27. Bd2 {[%emt 0:00:19]} Rc8 {[%emt 0:02:57]} 28. Bxa5 {[%emt 0:00:20]} Rxa5 {[%emt 0:00:01]} 29. Qd2 {[%emt 0:00:31]} Qa7 {[%emt 0:00:13]} 30. Bc4 {[%emt 0:02:12]} Nxc4 {[%emt 0:00:10]} 31. Rxc4 {[%emt 0:00:04]} Rxa2 {[%emt 0:00:03]} 32. Rc2 {[%emt 0:00:12]} c4+ {[%emt 0:00:15]} 33. Kh1 {[%emt 0:00:15]} Rxc2 {[%emt 0:00:55]} 34. Qxc2 {[%emt 0:00:04]} c3 {[%emt 0:00:18]} 35. Re1 {[%emt 0:01:36]} g6 {[%emt 0:00:31]} 36. h3 {[%emt 0:00:11]} Qb6 {[%emt 0:00:16]} 37. Rb1 {[%emt 0:00:24]} Qe3 {[%emt 0:01:05]} 38. Rd1 {[%emt 0:00:13]} Kg7 {[%emt 0:03:53]} 39. Kh2 {[%emt 0:00:26]} h5 {[%emt 0:02:15]} 40. Ra1 {[%emt 0:02:16]} g5 {[%emt 0:01:37]} 41. Qc1 {[%emt 0:03:24]} Qf4+ {[%emt 0:01:15]} 42. g3 {[%emt 0:05:35]} Qxf3 {[%emt 0:01:19]} 43. Qxg5+ {[%emt 0:00:11]} Kh7 {[%emt 0:00:09]} 44. g4 {[%emt 0:00:54]} Qf4+ {[%emt 0:01:18]} 45. Qxf4 {[%emt 0:00:09]} exf4 {[%emt 0:00:03]} 46. Kg2 {[%emt 0:00:41]} hxg4 {[%emt 0:03:41]} 47. hxg4 {[%emt 0:00:05]} Kg6 {[%emt 0:00:16]} 48. Kf3 {[%emt 0:01:48]} Kg5 {[%emt 0:00:09]} 49. Rc1 {[%emt 0:00:52]} f6 {[%emt 0:00:34]} 50. Rc2 {[%emt 0:00:11]} Rc7 {[%emt 0:00:16]} 51. Rc1 {[%emt 0:00:13]} c2 {[%emt 0:00:09]} 52. Kf2 {[%emt 0:00:45]} Kxg4 {[%emt 0:00:07]} 53. Rg1+ {[%emt 0:00:06]} Kh5 {[%emt 0:00:18]} 54. Rh1+ {[%emt 0:00:11]} Kg6 {[%emt 0:00:28]} 55. Rg1+ {[%emt 0:00:12]} Kf7 {[%emt 0:00:20]} 56. Rc1 {[%emt 0:00:05]} Rc3 {[%emt 0:00:05]} 57. Ke2 {[%emt 0:00:05]} f5 {[%emt 0:00:52]} 58. Kd2 {[%emt 0:00:22]} Rc5 {[%emt 0:00:18]} 59. Kd3 {[%emt 0:00:18]} Kf6 {[%emt 0:00:38]} 60. Kd4 {[%emt 0:00:15]} Rc8 {[%emt 0:00:56]} 61. Kd3 {[%emt 0:00:55]} Ke5 {[%emt 0:00:30]} 62. exf5 {[%emt 0:00:16]} Kxd5 {[%emt 0:00:28]} 63. f6 {[%emt 0:00:16]} Ke6 {[%emt 0:00:36]} 64. Ke4 {[%emt 0:00:09]} Rc4+ {[%emt 0:00:10]} 65. Kd3 {[%emt 0:00:08]} d5 {[%emt 0:00:10]} 66. f7 {[%emt 0:00:05]} Kxf7 {[%emt 0:00:06]} 67. Kd2 {[%emt 0:00:37]} Kf6 {[%emt 0:00:14]} 68. Kd3 {[%emt 0:00:03]} Kf5 {[%emt 0:00:24]} 69. Ke2 {[%emt 0:00:14]} Ke4 {[%emt 0:00:24]} 70. Kd2 {[%emt 0:00:04]} f3 {[%emt 0:00:19]} 71. Re1+ {[%emt 0:00:10]} Kf4 {[%emt 0:00:04]} 72. Kd3 {[%emt 0:00:05]} c1=Q {[%emt 0:00:42]} 73. Re4+ {[%emt 0:01:12]} dxe4# {[%emt 0:00:41]} 0-1

[Event "FIDE World Cup O10-A 2024"]
[Site "Batumi"]
[Date "2024.06.25"]
[Round "3.7"]
[White "Ramesan, Raunak Amit"]
[Black "Kalinichenko, German Yu"]
[Result "1-0"]
[ECO "C58"]
[WhiteElo "1772"]
[BlackElo "1634"]
[Annotator "NA RC"]
[PlyCount "79"]
[EventDate "2024.06.23"]
[EventType "swiss"]
[EventCountry "GEO"]
[SourceTitle "playchess.com"]
[Source "ChessBase"]
[SourceQuality "1"]
[TimeControl "5400+30"]

1. e4 {[%emt 0:00:01]} e5 {[%emt 0:00:25]} 2. Nf3 {[%emt 0:00:06]} Nc6 {[%emt 0:00:12]} 3. Bc4 {[%emt 0:00:05]} Nf6 {[%emt 0:00:14]} 4. Ng5 {[%emt 0:00:05]} d5 {[%emt 0:00:09]} 5. exd5 {[%emt 0:00:20]} Na5 {[%emt 0:00:11]} 6. Bb5+ {[%emt 0:00:32]} c6 {[%emt 0:00:07]} 7. dxc6 {[%emt 0:00:06]} bxc6 {[%emt 0:00:23]} 8. Qf3 {[%emt 0:00:18]} Be7 {[%emt 0:00:07]} 9. Bd3 {[%emt 0:03:31]} O-O {[%emt 0:00:48]} 10. Nc3 {[%emt 0:11:03]} h6 {[%emt 0:01:20]} 11. Nge4 {[%emt 0:01:33]} Nd5 {[%emt 0:00:22]} 12. Ng3 {[%emt 0:02:30]} Nf4 {[%emt 0:04:14]} 13. O-O {[%emt 0:24:58]} Nxd3 {[%emt 0:00:08]} 14. cxd3 {[%emt 0:00:07]} Ba6 {[%emt 0:00:55]} 15. Re1 {[%emt 0:04:37]} f6 {[%emt 0:00:46]} 16. d4 {[%emt 0:02:56]} exd4 {[%emt 0:03:23]} 17. Nf5 {[%emt 0:02:29]} Rf7 {[%emt 0:02:04]} 18. Ne4 {[%emt 0:04:42]} Bc8 {[%emt 1:23:42]} 19. d3 {[%emt 0:01:40]} Bxf5 {[%emt 0:00:00]} 20. Qxf5 {[%emt 0:00:10]} Bb4 {[%emt 0:00:00]} 21. Bd2 {[%emt 0:00:48]} Bxd2 {[%emt 0:00:00]} 22. Nxd2 {[%emt 0:00:10]} Nb7 {[%emt 0:00:00]} 23. Rac1 {[%emt 0:01:13]} Qc7 {[%emt 0:00:00]} 24. Qe4 {[%emt 0:02:12]} c5 {[%emt 0:00:00]} 25. Nb3 {[%emt 0:00:56]} Rc8 {[%emt 0:00:00]} 26. Nxd4 {[%emt 0:02:02]} Qa5 {[%emt 0:00:00]} 27. Qe6 {[%emt 0:02:23]} Rcc7 {[%emt 0:00:00]} 28. Nf5 {[%emt 0:03:29]} c4 {[%emt 0:00:00]} 29. Qe8+ {[%emt 0:04:24]} Kh7 {[%emt 0:00:00]} 30. Ne7 {[%emt 0:00:59]} Rfxe7 {[%emt 0:00:00]} 31. Rxe7 {[%emt 0:00:13]} Rxe7 {[%emt 0:00:00]} 32. Qxe7 {[%emt 0:00:14]} cxd3 {[%emt 0:00:00]} 33. Qxb7 {[%emt 0:01:23]} d2 {[%emt 0:00:00]} 34. Rd1 {[%emt 0:00:37]} Qe5 {[%emt 0:00:00]} 35. Qb4 {[%emt 0:00:49]} Qd5 {[%emt 0:00:00]} 36. Qxd2 {[%emt 0:00:08]} Qxa2 {[%emt 0:00:00]} 37. h3 {[%emt 0:00:22]} Qe6 {[%emt 0:00:00]} 38. Qe3 {[%emt 0:00:13]} Qc6 {[%emt 0:00:00]} 39. Qd3+ {[%emt 0:00:19]} Kg8 {[%emt 0:00:00]} 40. Qd5+ {[%emt 0:00:25]} 1-0